[Event "WYCC 2018 O14"]
[Site "Halkidiki"]
[Date "2018.10.24"]
[Round "6"]
[White "Avila Pavas, Santiago"]
[Black "Spyropoulos, Nikolaos"]
[Result "1-0"]
[ECO "D03"]
[WhiteElo "2277"]
[BlackElo "2378"]
[Annotator "NA"]
[PlyCount "79"]
[EventDate "2018.10.20"]
[EventType "swiss"]
[EventCountry "GRE"]
[SourceTitle "playchess.com"]
[Source "ChessBase"]
[SourceQuality "1"]
[TimeControl "40/5400+30:1800+30"]

1. d4 {[%emt 0:00:00]} Nf6 {[%emt 0:00:00]} 2. Nf3 {[%emt 0:00:00]} d5 {[%emt 0:00:00]} 3. Bg5 {[%emt 0:01:10]} Ne4 {[%emt 0:00:33]} 4. Bh4 {[%emt 0:00:11]} c5 {[%emt 0:01:05]} 5. e3 {[%emt 0:00:32]} Nc6 {[%emt 0:00:57] D03: 1 d4 d5 2 Nf3 Nf6 3 Bg5, including Torre Attack with early ...d5} 6. Nbd2 {[%emt 0:00:33]} Qb6 {[%emt 0:11:57]} (6... Bf5 7. dxc5 Nxc5 8. Be2 g6 9. Nd4 Bg7 10. Nxf5 gxf5 11. c3 O-O 12. O-O Qd6 13. Bg3 {½-½ (23) Sjugirov,S (2650)-Bacrot,E (2725) Riadh 2017}) 7. Rb1 {[%emt 0:08:19]} Bf5 {[%emt 0:03:38]} 8. Nxe4 {[%emt 0:13:53]} Bxe4 {[%emt 0:07:20]} 9. Bd3 $146 {[%emt 0:05:20]} ({Predecessor:} 9. dxc5 Qxc5 10. Nd2 Qxc2 11. Qxc2 Bxc2 12. Rc1 Bf5 {0-1 (25) Rasmussen,M (1920)-Svane,R (2427) Helsingor 2013}) 9... Bxf3 {[%emt 0:12:51]} 10. Qxf3 {[%emt 0:06:18]} cxd4 {[%emt 0:00:13]} 11. Qxd5 {[%emt 0:05:14]} dxe3 {[%emt 0:16:46]} 12. O-O {[%emt 0:06:45]} Rd8 {[%emt 0:00:43]} 13. Qg5 {[%emt 0:22:10]} h6 {[%emt 0:09:36]} 14. Qg4 {[%emt 0:08:47]} Qd4 {[%emt 0:08:59]} 15. Qh3 {[%emt 0:00:10]} g5 {[%emt 0:01:05]} 16. Bg3 {[%emt 0:05:14]} h5 {[%emt 0:07:53]} 17. fxe3 {[%emt 0:01:24]} Qxe3+ {[%emt 0:00:07]} 18. Kh1 {[%emt 0:00:03]} h4 {[%emt 0:01:17] [#]} 19. Rbe1 $14 {[%emt 0:03:25]} (19. Bc4 $1 $16 {[%csl Gf1][%cal Rc4f7]} f6 20. Rbd1) 19... Qd4 {[%emt 0:00:15]} 20. Bf2 {[%emt 0:03:41]} Qd6 {[%emt 0:02:32]} 21. Bc4 {[%emt 0:06:05]} Qg6 {[%emt 0:11:51]} 22. Bc5 {[%emt 0:01:13]} Rh7 {[%emt 0:00:13]} 23. Bd3 {[%emt 0:00:32]} Rxd3 {[%emt 0:00:30]} 24. cxd3 {[%emt 0:00:17]} g4 {[%emt 0:00:34]} 25. Qe3 {[%emt 0:00:01]} h3 {[%emt 0:00:23]} 26. Qg3 {[%emt 0:01:00]} hxg2+ {[%emt 0:00:45]} 27. Kxg2 {[%emt 0:00:01]} Nd8 {[%emt 0:00:53]} 28. Qc7 {[%emt 0:01:05]} f6 {[%emt 0:00:24]} 29. Qg3 {[%emt 0:00:35]} Qh5 {[%emt 0:00:35]} 30. d4 {[%emt 0:00:28]} Qd5+ {[%emt 0:00:07]} 31. Kg1 {[%emt 0:00:06]} b6 {[%emt 0:00:17]} 32. Ba3 {[%emt 0:00:37]} Rh3 {[%emt 0:01:09]} 33. Qxg4 {[%emt 0:00:45]} Rh5 {[%emt 0:00:29]} 34. Rxf6 {[%emt 0:00:31]} Rh7 {[%emt 0:00:29]} 35. Qg6+ {[%emt 0:00:32]} Rf7 {[%emt 0:00:27]} 36. Rxf7 {[%emt 0:00:24]} Nxf7 {[%emt 0:00:02]} 37. Qg4 {[%emt 0:00:08]} Nd6 {[%emt 0:00:43]} 38. Bxd6 {[%emt 0:00:11]} Qxd6 {[%emt 0:00:03]} 39. Qc8+ {[%emt 0:00:05]} Kf7 {[%emt 0:00:05]} 40. Rf1+ {[%emt 0:00:00]} 1-0

[Event "WYCC 2018 O14"]
[Site "Halkidiki"]
[Date "2018.10.24"]
[Round "6"]
[White "Gombocz, Ferenc Jr."]
[Black "Nguyen, Huynh Minh Thien"]
[Result "1-0"]
[ECO "A16"]
[WhiteElo "2271"]
[BlackElo "1996"]
[Annotator "NA"]
[PlyCount "145"]
[EventDate "2018.10.20"]
[EventType "swiss"]
[EventCountry "GRE"]
[SourceTitle "playchess.com"]
[Source "ChessBase"]
[SourceQuality "1"]
[TimeControl "40/5400+30:1800+30"]

1. c4 {[%emt 0:00:00]} Nf6 {[%emt 0:00:30]} 2. g3 {[%emt 0:00:00]} g6 {[%emt 0:00:37]} 3. Bg2 {[%emt 0:00:03]} d5 {[%emt 0:00:20]} 4. cxd5 {[%emt 0:00:31]} Nxd5 {[%emt 0:00:07]} 5. Nc3 {[%emt 0:00:10]} Nxc3 {[%emt 0:01:18]} 6. bxc3 {[%emt 0:00:19]} Bg7 {[%emt 0:01:05]} 7. Nf3 {[%emt 0:03:15] LiveBook: 170 Games} O-O {[%emt 0:00:22]} 8. O-O {[%emt 0:00:06]} e5 {[%emt 0:04:02]} 9. Rb1 {[%emt 0:03:20]} c6 {[%emt 0:01:43]} 10. Qb3 {[%emt 0:10:07] A16: English Opening: 1...Nf6 with ...d5} (10. d3 Nd7 11. Ba3 Re8 12. Qb3 Bf8 13. Bxf8 Nxf8 14. h4 Qc7 15. Ng5 Kg7 16. a4 h6 17. Nf3 b6 {½-½ (49) Demianjuk,A (2333)-Makoveev,I (2196) Moscow 2018}) 10... Na6 $146 {[%emt 0:04:59]} ({Predecessor:} 10... b6 11. d4 Be6 12. Qc2 Nd7 13. Ng5 Bd5 14. e4 Bc4 15. Rd1 f6 16. Rb4 fxg5 17. Rxc4 Qf6 {½-½ (86) Cip,D (2166)-Knotek,J (2015) Stare Mesto 2010}) 11. d3 {[%emt 0:02:05]} h6 {[%emt 0:00:18]} 12. Qa3 {[%emt 0:01:54]} Nc7 {[%emt 0:01:35]} 13. Nd2 {[%emt 0:08:54]} Re8 {[%emt 0:04:54]} 14. Nc4 {[%emt 0:02:22]} Nb5 {[%emt 0:04:04]} 15. Qb2 {[%emt 0:15:02]} Nd6 {[%emt 0:16:39]} 16. Nxd6 {[%emt 0:07:26]} Qxd6 {[%emt 0:00:06]} 17. Qb4 {[%emt 0:04:36]} Qc7 {[%emt 0:03:27]} 18. a4 {[%emt 0:07:46]} Rb8 {[%emt 0:04:13]} 19. Be3 {[%emt 0:10:11]} Ra8 {[%emt 0:09:26]} 20. a5 {[%emt 0:01:53]} Kh7 {[%emt 0:01:42]} 21. Bc5 {[%emt 0:03:30]} Rd8 {[%emt 0:01:27]} 22. f4 {[%emt 0:01:58]} exf4 {[%emt 0:03:27]} 23. Rxf4 {[%emt 0:02:39]} Be6 {[%emt 0:01:52]} 24. Rff1 {[%emt 0:05:41]} Rd7 {[%emt 0:01:06]} 25. d4 {[%emt 0:00:23]} Qd8 {[%emt 0:02:52]} 26. Qa3 {[%emt 0:02:05]} Bc4 {[%emt 0:00:43]} 27. Rf2 {[%emt 0:01:12]} h5 {[%emt 0:01:10]} 28. a6 {[%emt 0:01:38]} b6 {[%emt 0:03:08]} 29. Bxc6 {[%emt 0:01:01]} bxc5 {[%emt 0:00:13]} 30. Qa4 {[%emt 0:02:46]} Be6 {[%emt 0:02:18]} 31. Bxd7 {[%emt 0:00:59]} Bxd7 {[%emt 0:00:02]} 32. Qc4 {[%emt 0:00:51]} Be6 {[%emt 0:01:41]} 33. Qxc5 {[%emt 0:00:42]} Rc8 {[%emt 0:00:01]} 34. Qa3 {[%emt 0:00:23]} Bh6 {[%emt 0:00:31]} 35. Rf3 {[%emt 0:01:00]} Bd5 $19 {[%emt 0:01:03]} 36. e4 {[%emt 0:00:34]} Bxe4 {[%emt 0:00:01]} 37. Rxf7+ {[%emt 0:00:22]} Kg8 {[%emt 0:00:01]} 38. Re1 {[%emt 0:00:42]} Kxf7 {[%emt 0:02:28]} 39. Rxe4 {[%emt 0:00:09]} Rc7 {[%emt 0:06:52]} 40. Qb3+ {[%emt 0:00:00]} Kg7 {[%emt 0:00:00]} 41. c4 {[%emt 0:14:12]} Qf6 {[%emt 0:00:34]} 42. Qb5 {[%emt 0:05:50]} Kh7 {[%emt 0:02:37]} 43. c5 {[%emt 0:03:17]} Qf3 {[%emt 0:09:16]} 44. Qe2 {[%emt 0:01:55]} Qxe2 {[%emt 0:00:05]} 45. Rxe2 {[%emt 0:00:04]} Bg7 {[%emt 0:00:30]} 46. Rd2 {[%emt 0:01:44]} Kg8 {[%emt 0:00:58]} 47. Kg2 {[%emt 0:02:03]} Kf7 {[%emt 0:01:18]} 48. Kf3 {[%emt 0:00:47]} Rc6 {[%emt 0:05:15]} 49. Ke4 {[%emt 0:00:45]} Rxa6 {[%emt 0:01:05]} 50. Rb2 {[%emt 0:01:26]} Bf6 {[%emt 0:04:08]} 51. Rb7+ {[%emt 0:00:39]} Kf8 {[%emt 0:00:57]} 52. d5 {[%emt 0:02:22]} Ra4+ {[%emt 0:00:16]} 53. Kf3 {[%emt 0:00:07]} Ke8 {[%emt 0:01:22]} 54. c6 {[%emt 0:00:50]} Rd4 {[%emt 0:03:40]} 55. Rb8+ {[%emt 0:00:19]} Ke7 {[%emt 0:02:47]} 56. c7 {[%emt 0:00:14]} Rd3+ {[%emt 0:00:47]} 57. Ke4 {[%emt 0:00:48]} Rd4+ {[%emt 0:00:02]} 58. Ke3 {[%emt 0:00:11]} Rc4 {[%emt 0:00:03]} 59. c8=Q {[%emt 0:00:08]} Bd4+ {[%emt 0:00:02]} 60. Ke4 {[%emt 0:01:28]} Rxc8 {[%emt 0:00:06]} 61. Rxc8 {[%emt 0:00:05]} Bg1 {[%emt 0:00:03]} 62. h3 {[%emt 0:00:20]} Bf2 {[%emt 0:00:10]} 63. Rc7+ {[%emt 0:00:20]} Kd8 {[%emt 0:00:14]} 64. d6 {[%emt 0:00:42]} Bxg3 {[%emt 0:00:11]} 65. Kd5 {[%emt 0:00:10]} a5 {[%emt 0:00:46]} 66. Ra7 {[%emt 0:00:21]} Bf2 {[%emt 0:00:56]} 67. Rxa5 {[%emt 0:00:24]} Kd7 {[%emt 0:00:06]} 68. Rb5 {[%emt 0:00:11]} g5 {[%emt 0:00:02]} 69. Rb7+ {[%emt 0:00:25]} Kc8 {[%emt 0:00:04]} 70. Kc6 {[%emt 0:00:45]} g4 {[%emt 0:00:07]} 71. d7+ {[%emt 0:00:11]} Kd8 {[%emt 0:00:06]} 72. Rb8+ {[%emt 0:00:06]} Ke7 {[%emt 0:00:05]} 73. d8=Q+ 1-0

[Event "WYCC 2018 O14"]
[Site "Halkidiki"]
[Date "2018.10.24"]
[Round "6"]
[White "Boyer, Mahel"]
[Black "Manucharyan, Gagik"]
[Result "1-0"]
[ECO "B20"]
[WhiteElo "2227"]
[BlackElo "1827"]
[Annotator "NA"]
[PlyCount "71"]
[EventDate "2018.10.20"]
[EventType "swiss"]
[EventCountry "GRE"]
[SourceTitle "playchess.com"]
[Source "ChessBase"]
[SourceQuality "1"]
[TimeControl "40/5400+30:1800+30"]

1. e4 {[%emt 0:03:09]} c5 {[%emt 0:00:01]} 2. d3 {[%emt 0:00:05]} Nc6 {[%emt 0:01:24]} 3. g3 {[%emt 0:00:01]} g6 {[%emt 0:01:39]} 4. Bg2 {[%emt 0:00:02]} Bg7 {[%emt 0:01:05]} 5. f4 {[%emt 0:00:01]} e6 {[%emt 0:00:38]} 6. Nf3 {[%emt 0:00:01]} Nge7 {[%emt 0:00:52]} 7. O-O {[%emt 0:00:02]} O-O {[%emt 0:02:03]} 8. c3 {[%emt 0:00:09]} d6 {[%emt 0:02:55]} 9. Be3 {[%emt 0:00:05]} Rb8 {[%emt 0:01:09]} 10. d4 {[%emt 0:00:05]} cxd4 {[%emt 0:02:10]} 11. cxd4 {[%emt 0:00:01]} d5 {[%emt 0:00:59] B20: Sicilian: Unusual White 2nd moves} 12. e5 {[%emt 0:00:01]} b6 {[%emt 0:05:04]} (12... Qb6 13. Qd2 Qb4 14. Nc3 Na5 15. b3 Bd7 16. Rac1 Rfc8 17. g4 Rc6 18. Qe1 Rbc8 19. Bd2 {1-0 (42) Movsziszian,K (2556)-Larino Nieto,D (2464) La Roda 2009}) 13. Nc3 {[%emt 0:00:03]} Ba6 {[%emt 0:00:27]} 14. Re1 {[%emt 0:00:00]} Qd7 {[%emt 0:03:57]} 15. Qd2 {[%emt 0:00:05]} Rfc8 {[%emt 0:04:22]} 16. g4 {[%emt 0:00:08]} Na5 {[%emt 0:06:27]} 17. b3 {[%emt 0:00:24]} Rc7 $146 {[%emt 0:04:57]} ({Predecessor:} 17... Rc6 18. Rec1 Rbc8 19. Bf1 Bxf1 20. Kxf1 {½-½ (74) Biti,O (2295)-Filipovic,B (2446) Zagreb 2002}) 18. Rac1 {[%emt 0:00:07]} Rbc8 {[%emt 0:00:05]} 19. Bf2 {[%emt 0:00:41]} Rc6 {[%emt 0:17:02]} 20. Bf1 {[%emt 0:05:17]} Bxf1 {[%emt 0:00:43]} 21. Rxf1 {[%emt 0:00:00]} R8c7 {[%emt 0:11:51]} 22. Bh4 {[%emt 0:00:23]} Qc8 {[%emt 0:03:11]} 23. Bxe7 {[%emt 0:04:44]} Rxc3 {[%emt 0:05:35]} 24. Rxc3 {[%emt 0:00:01]} Rxc3 {[%emt 0:00:49]} 25. f5 {[%emt 0:23:38]} (25. Bc5 $14 Rc4 26. bxc4 Nxc4 27. Qd3 bxc5 28. Nd2) 25... Rc2 {[%emt 0:04:19]} 26. Qf4 {[%emt 0:03:39]} exf5 {[%emt 0:00:40]} 27. Nh4 {[%emt 0:10:45]} Qe6 {[%emt 0:08:03]} 28. gxf5 $19 {[%emt 0:00:23]} Qxe7 {[%emt 0:00:03]} 29. f6 {[%emt 0:00:08]} Qe6 {[%emt 0:05:23]} 30. fxg7 {[%emt 0:00:02]} Kxg7 {[%emt 0:00:15]} 31. Qg5 {[%emt 0:00:19]} Kf8 {[%emt 0:00:24]} 32. Rf6 {[%emt 0:04:12]} Qh3 {[%emt 0:02:13]} 33. Qf4 {[%emt 0:01:19]} Kg8 {[%emt 0:04:22]} 34. e6 {[%emt 0:00:33]} Rc1+ {[%emt 0:01:13]} 35. Qxc1 {[%emt 0:00:24]} Qg4+ {[%emt 0:00:04]} 36. Kh1 {[%emt 0:00:28]} 1-0

[Event "WYCC 2018 O14"]
[Site "Halkidiki"]
[Date "2018.10.24"]
[Round "6"]
[White "Czopor, Maciej"]
[Black "Huang, Renjie"]
[Result "0-1"]
[ECO "B35"]
[WhiteElo "2219"]
[BlackElo "2322"]
[Annotator "NA"]
[PlyCount "82"]
[EventDate "2018.10.20"]
[EventType "swiss"]
[EventCountry "GRE"]
[SourceTitle "playchess.com"]
[Source "ChessBase"]
[SourceQuality "1"]
[TimeControl "40/5400+30:1800+30"]

1. e4 {[%emt 0:00:00]} c5 {[%emt 0:00:00]} 2. Nf3 {[%emt 0:00:00]} g6 {[%emt 0:00:00]} 3. d4 {[%emt 0:00:00]} cxd4 {[%emt 0:00:00]} 4. Nxd4 {[%emt 0:00:08]} Bg7 {[%emt 0:00:00]} 5. Nc3 {[%emt 0:00:26]} Nc6 {[%emt 0:00:01]} 6. Be3 {[%emt 0:00:39]} Nf6 {[%emt 0:00:13]} 7. Bc4 {[%emt 0:01:46]} O-O {[%emt 0:00:11]} 8. Bb3 {[%emt 0:00:49]} a5 {[%emt 0:00:17]} 9. O-O {[%emt 0:02:16]} a4 {[%emt 0:00:26]} 10. Nxa4 {[%emt 0:01:18]} Nxe4 {[%emt 0:00:08]} 11. Nb5 {[%emt 0:01:37]} Ra6 {[%emt 0:00:29] B35: Sicilian: Accelerated Dragon with 5 Nc3: main line} 12. c4 {[%emt 0:01:35]} (12. f3 Nf6 13. c4 d6 14. Nac3 Na5 15. Rc1 Be6 16. Ne2 d5 17. c5 Nxb3 18. axb3 Bd7 19. Nbc3 {1-0 (36) Almasi,Z (2689)-Istratescu,A (2602) Bastia 2015}) 12... d6 {[%emt 0:00:51]} 13. Qe2 {[%emt 0:02:12]} Nf6 {[%emt 0:00:19]} 14. Rfd1 {[%emt 0:04:43]} Bg4 {[%emt 0:15:05]} 15. f3 {[%emt 0:00:42]} Bd7 {[%emt 0:00:03]} 16. Qf2 $146 {[%emt 0:21:22]} (16. a3 $16) ({Predecessor:} 16. Nac3 Re8 17. a3 Qb8 18. Rac1 Ne5 19. Nd5 {0-1 (53) Balogh,C (2471)-Wirig,A (2347) Pula 2003}) 16... Na5 {[%emt 0:08:23]} 17. Bb6 {[%emt 0:12:05]} Qc8 {[%emt 0:03:21]} 18. Rac1 {[%emt 0:11:53]} Nxb3 {[%emt 0:05:08]} 19. axb3 {[%emt 0:00:13]} Bc6 {[%emt 0:14:22]} 20. Re1 {[%emt 0:10:39]} Nd7 {[%emt 0:04:37]} 21. Bd4 {[%emt 0:02:05]} Ne5 $11 {[%emt 0:02:49]} 22. Rc3 {[%emt 0:03:43]} Qd7 {[%emt 0:05:32]} 23. Nb6 {[%emt 0:02:42]} Qf5 {[%emt 0:01:01]} 24. Nc7 {[%emt 0:02:19]} Rxb6 {[%emt 0:02:58]} 25. Bxb6 {[%emt 0:01:06]} Nd3 {[%emt 0:00:05]} 26. Rxd3 {[%emt 0:01:23]} Qxd3 {[%emt 0:00:04]} 27. Qe3 {[%emt 0:03:08]} Qc2 {[%emt 0:02:14]} 28. Re2 {[%emt 0:01:28]} Qb1+ {[%emt 0:00:39]} 29. Kf2 {[%emt 0:00:26]} Bxb2 {[%emt 0:02:45]} 30. Qxe7 {[%emt 0:05:47]} Be5 {[%emt 0:01:00]} 31. Rxe5 {[%emt 0:01:01]} dxe5 {[%emt 0:02:30]} 32. Qxe5 {[%emt 0:01:10]} Qf5 {[%emt 0:03:37]} 33. Qxf5 {[%emt 0:03:28]} gxf5 {[%emt 0:00:02]} 34. b4 {[%emt 0:00:11]} f6 {[%emt 0:00:46]} 35. b5 {[%emt 0:01:14]} Bd7 {[%emt 0:00:10]} 36. Bc5 {[%emt 0:00:46]} Rc8 {[%emt 0:00:51]} 37. b6 {[%emt 0:01:15]} Be6 {[%emt 0:02:46]} 38. Be7 {[%emt 0:00:53]} Kf7 {[%emt 0:00:29]} 39. c5 {[%emt 0:00:30]} Kxe7 {[%emt 0:00:30]} 40. c6 {[%emt 0:00:00]} Rxc7 {[%emt 0:00:00]} 41. bxc7 {[%emt 0:00:28]} bxc6 {[%emt 0:00:33]} 0-1

[Event "WYCC 2018 O14"]
[Site "Halkidiki"]
[Date "2018.10.24"]
[Round "6"]
[White "Turcan, Richard"]
[Black "Dabarera, G W D M"]
[Result "1/2-1/2"]
[ECO "B60"]
[WhiteElo "2218"]
[BlackElo "1768"]
[Annotator "NA"]
[PlyCount "52"]
[EventDate "2018.10.20"]
[EventType "swiss"]
[EventCountry "GRE"]
[SourceTitle "playchess.com"]
[Source "ChessBase"]
[SourceQuality "1"]
[TimeControl "40/5400+30:1800+30"]

1. e4 {[%emt 0:00:00]} c5 {[%emt 0:00:00]} 2. Nf3 {[%emt 0:00:00]} d6 {[%emt 0:00:00]} 3. d4 {[%emt 0:00:04]} cxd4 {[%emt 0:00:00]} 4. Nxd4 {[%emt 0:00:06]} Nf6 {[%emt 0:00:00]} 5. Nc3 {[%emt 0:00:04]} Nc6 {[%emt 0:00:00]} 6. Bg5 {[%emt 0:01:08]} g6 {[%emt 0:00:03]} 7. Bxf6 {[%emt 0:09:39] LiveBook: 109 Games} exf6 {[%emt 0:00:02]} 8. Be2 {[%emt 0:01:07] B60: Sicilian: Richter-Rauzer: Unusual Black 6th moves and 6...Bd7 without 7 Qd2} (8. Bb5 Bd7 9. Bc4 Bg7 10. Nxc6 Bxc6 11. O-O O-O 12. Qd3 Rc8 13. Bb3 f5 14. exf5 Bxc3 15. bxc3 Qg5 {½-½ (61) Motylev,A (2677)-Potkin,V (2684) Wijk aan Zee 2012}) 8... Bg7 {[%emt 0:00:05]} 9. O-O {[%emt 0:03:13]} O-O {[%emt 0:00:06]} 10. Nb3 $146 {[%emt 0:01:30]} ({Predecessor:} 10. Ndb5 f5 11. Nxd6 Bxc3 12. bxc3 fxe4 13. Nxe4 Qe7 14. Bd3 b6 15. Qf3 Bb7 {1-0 (30) Pogonina,N (2501)-Romanko,M (2226) Moscow 2009}) 10... f5 {[%emt 0:01:19]} 11. exf5 {[%emt 0:11:40]} Bxf5 {[%emt 0:00:59]} 12. Bf3 {[%emt 0:04:08]} Rb8 {[%emt 0:02:57]} 13. Re1 {[%emt 0:19:06]} Ne5 {[%emt 0:20:19]} 14. Nd4 {[%emt 0:02:31]} Bd7 {[%emt 0:07:17]} 15. h3 {[%emt 0:10:22]} Qb6 {[%emt 0:04:12]} 16. Nb3 {[%emt 0:01:27]} Nxf3+ {[%emt 0:02:38]} 17. Qxf3 {[%emt 0:01:04]} Bc6 {[%emt 0:00:08]} 18. Qd3 {[%emt 0:05:46]} Rbd8 {[%emt 0:03:40]} 19. a4 {[%emt 0:06:09]} d5 {[%emt 0:01:32]} 20. a5 {[%emt 0:00:47]} Qb4 {[%emt 0:01:27]} 21. a6 $17 {[%emt 0:05:22]} b6 {[%emt 0:02:20]} 22. Qg3 {[%emt 0:01:28]} d4 {[%emt 0:01:28]} 23. Na2 {[%emt 0:02:00]} Qc4 {[%emt 0:01:17]} 24. Qd3 {[%emt 0:00:50]} Qd5 {[%emt 0:01:30]} 25. Qg3 {[%emt 0:00:55]} Qc4 {[%emt 0:00:28]} 26. Qd3 {[%emt 0:00:24]} Qd5 1/2-1/2

[Event "WYCC 2018 O14"]
[Site "Halkidiki"]
[Date "2018.10.24"]
[Round "6"]
[White "Tengis, Tsog-Ochir"]
[Black "Stoyanov, Tsvetan"]
[Result "1-0"]
[ECO "A45"]
[WhiteElo "2205"]
[BlackElo "2340"]
[Annotator "NA"]
[PlyCount "51"]
[EventDate "2018.10.20"]
[EventType "swiss"]
[EventCountry "GRE"]
[SourceTitle "playchess.com"]
[Source "ChessBase"]
[SourceQuality "1"]
[TimeControl "40/5400+30:1800+30"]

1. d4 {[%emt 0:00:00]} Nf6 {[%emt 0:00:00]} 2. g3 {[%emt 0:00:00]} e6 {[%emt 0:00:07]} 3. Bg2 {[%emt 0:00:00]} d5 {[%emt 0:00:16]} 4. Nf3 {[%emt 0:00:19]} b5 {[%emt 0:00:16]} 5. O-O {[%emt 0:00:26]} Nbd7 {[%emt 0:00:27] A46: 1 d4 Nf6 2 Nf3 e6: Torre, London and Colle Systems} (5... Be7 6. Nbd2 O-O 7. Ne5 Bb7 8. Nb3 a5 9. a4 b4 10. c4 bxc3 {½-½ (10) Hera,I (2620)-Piorun,K (2633) Brest 2018}) 6. Ne5 {[%emt 0:00:58]} Bb7 {[%emt 0:00:27]} 7. a4 {[%emt 0:03:12]} b4 {[%emt 0:15:10]} 8. a5 {[%emt 0:00:02] LiveBook: 4 Games} Rb8 {[%emt 0:14:46]} 9. c4 $146 {[%emt 0:00:50]} ({Predecessor:} 9. f4 c5 10. f5 cxd4 11. Bf4 Rc8 12. Bh3 Nc5 13. Qxd4 {0-1 (30) Gaya Llodra,J (2257)-Libiszewski,F (2487) Palma de Mallorca 2008}) 9... bxc3 {[%emt 0:02:24]} 10. Nxc3 {[%emt 0:03:34]} Nxe5 {[%emt 0:04:58]} 11. dxe5 {[%emt 0:00:04]} Nd7 {[%emt 0:00:31]} 12. e4 {[%emt 0:00:58]} c6 {[%emt 0:09:36]} 13. Be3 {[%emt 0:03:48]} Ba6 {[%emt 0:09:23]} 14. Re1 {[%emt 0:02:15]} Bc5 {[%emt 0:02:39]} 15. exd5 {[%emt 0:05:15]} cxd5 {[%emt 0:01:01]} 16. Nxd5 {[%emt 0:03:05]} exd5 {[%emt 0:24:40]} 17. e6 {[%emt 0:03:32]} fxe6 {[%emt 0:01:03]} 18. Bxd5 {[%emt 0:07:35]} Bb4 {[%emt 0:03:17]} 19. Bd2 {[%emt 0:05:53]} Nc5 {[%emt 0:02:15]} 20. Qh5+ {[%emt 0:03:01]} Kd7 {[%emt 0:04:31] [#]} 21. Bxe6+ $18 {[%emt 0:04:42]} Kc6 {[%emt 0:00:52]} 22. Qf3+ {[%emt 0:01:10]} Kb5 {[%emt 0:00:00]} 23. Bxb4 {[%emt 0:00:57]} Nd3 {[%emt 0:01:20]} 24. Qf5+ {[%emt 0:00:49]} Kxb4 {[%emt 0:01:00]} 25. Re4+ {[%emt 0:00:02]} Bc4 {[%emt 0:00:07]} 26. Rxc4+ {[%emt 0:00:29]} 1-0

[Event "WYCC 2018 O14"]
[Site "Halkidiki"]
[Date "2018.10.24"]
[Round "6"]
[White "Van Dael, Siem"]
[Black "Ghazaryan, Raffi"]
[Result "1-0"]
[ECO "B17"]
[WhiteElo "2202"]
[BlackElo "1916"]
[Annotator "NA"]
[PlyCount "69"]
[EventDate "2018.10.20"]
[EventType "swiss"]
[EventCountry "GRE"]
[SourceTitle "playchess.com"]
[Source "ChessBase"]
[SourceQuality "1"]
[TimeControl "40/5400+30:1800+30"]

1. e4 c6 {[%emt 0:00:00]} 2. d4 {[%emt 0:00:00]} d5 {[%emt 0:00:21]} 3. Nd2 {[%emt 0:00:00]} dxe4 {[%emt 0:00:06]} 4. Nxe4 {[%emt 0:00:00]} Nd7 {[%emt 0:00:46]} 5. Bc4 {[%emt 0:00:02]} Ngf6 {[%emt 0:05:21]} 6. Ng5 {[%emt 0:00:47]} e6 {[%emt 0:00:30]} 7. Qe2 {[%emt 0:00:05]} Nb6 {[%emt 0:04:51]} 8. Bd3 {[%emt 0:00:05]} h6 {[%emt 0:06:58] LiveBook: 618 Games} 9. N5f3 {[%emt 0:00:21]} Bd6 {[%emt 0:02:43] B17: Caro-Kann: Modern Line (4...Nd7)} (9... c5 10. dxc5 Bxc5 11. Ne5 Nbd7 12. Ngf3 Qc7 13. O-O O-O 14. Bf4 Bd6 15. Rfe1 Nxe5 16. Bxe5 Bxe5 17. Qxe5 Qxe5 18. Nxe5 Rd8 19. Rad1 Bd7 20. f3 Be8 21. c4 Kf8 22. Kf2 a5 23. b3 {½-½ (41) Duda,J (2652)-Wojtaszek,R (2713) Poznan 2016}) 10. Ne5 {[%emt 0:00:24]} O-O {[%emt 0:01:13]} 11. Ngf3 {[%emt 0:00:21]} Nbd7 {[%emt 0:02:50]} 12. Bd2 $146 {[%emt 0:06:43]} ({Predecessor:} 12. O-O c5 13. c3 cxd4 14. cxd4 b6 15. Bf4 Nd5 16. Bg3 N7f6 17. Nc6 {1-0 (65) Nopin,V (2375)-Justesen,A (2183) ICCF email 2009}) 12... c5 {[%emt 0:07:10]} 13. c3 {[%emt 0:01:24]} b6 {[%emt 0:02:54]} 14. Nxd7 {[%emt 0:03:43]} Bxd7 {[%emt 0:00:31]} 15. Ne5 {[%emt 0:03:41]} Qe7 {[%emt 0:06:32]} 16. a3 {[%emt 0:04:35]} Rfd8 {[%emt 0:04:40]} 17. g4 {[%emt 0:04:32]} cxd4 {[%emt 0:02:28]} 18. cxd4 {[%emt 0:00:10]} Bxe5 {[%emt 0:04:10]} 19. dxe5 {[%emt 0:00:14]} Nd5 {[%emt 0:00:04]} 20. Qe4 {[%emt 0:01:16]} g6 {[%emt 0:00:34]} 21. h4 {[%emt 0:08:44]} Bc6 {[%emt 0:04:16]} 22. Rh3 {[%emt 0:00:39]} a5 {[%emt 0:25:06]} 23. Qe2 {[%emt 0:01:43]} Qf8 {[%emt 0:00:52]} 24. Rc1 {[%emt 0:04:32]} Bb7 {[%emt 0:00:43]} 25. f4 {[%emt 0:04:17]} Rac8 {[%emt 0:05:39]} 26. Rxc8 {[%emt 0:00:38]} Rxc8 {[%emt 0:01:00] [#]} 27. h5 $16 {[%emt 0:06:51]} Qc5 28. hxg6 {[%emt 0:10:11]} Qg1+ {[%emt 0:03:48]} 29. Qf1 {[%emt 0:00:06]} Qxg4 {[%emt 0:00:44]} 30. gxf7+ {[%emt 0:00:10]} Kxf7 {[%emt 0:00:24]} 31. f5 {[%emt 0:00:16]} Rg8 {[%emt 0:07:25]} 32. fxe6+ Kxe6 {[%emt 0:00:02]} 33. Rxh6+ {[%emt 0:01:04]} Kxe5 {[%emt 0:00:06]} 34. Bc3+ {[%emt 0:00:12]} Nxc3 {[%emt 0:00:38]} 35. Qf6+ {[%emt 0:00:06]} 1-0